fUSD/lending_fUSD_20260421
["ID","MTS","AMOUNT","RATE_DAILY","PERIOD"]
[420921648,1776729051688,-1135.95,0.00027397,2]
[420921649,1776729051698,-500.0,0.00027397,2]
[420921650,1776729051707,-500.0,0.00027397,2]
[420921651,1776729051721,-500.0,0.00027397,2]
[420921652,1776729051730,-926.48,0.00027397,2]
[420921653,1776729051739,-1113.89,0.00027397,2]
[420921654,1776729051748,-670.33492017,0.00027397,2]
[420921655,1776729051772,-970.18063068,0.00027397,2]
[420921656,1776729051882,-781.36444915,0.00027397,2]
[420921657,1776729051892,-763.83,0.00027397,2]
[420921658,1776729051901,-1946.79,0.00027397,2]
[420921659,1776729051911,-291.1819089,0.00027397,2]
[420921660,1776729053618,-151.0,0.00013257,2]
[420921661,1776729053627,-208.8180911,0.00027397,2]
[420921662,1776729053637,-212.01136348,0.00027397,2]
[420921663,1776729053652,-312.67310193,0.00027397,2]
[420921664,1776729053662,-500.0,0.00027397,2]
[420921665,1776729053671,-500.0,0.00027397,2]
[420921666,1776729053680,-2146.57,0.00027397,2]
[420921667,1776729053690,-1005.67,0.00027397,2]
[420921668,1776729053699,-987.58690215,0.00027397,2]
[420921669,1776729053715,-1632.78309785,0.00027397,2]
[420921670,1776729053724,-500.0,0.00027397,2]
[420921671,1776729053733,-1818.48,0.00027397,2]
[420921672,1776729053742,-500.0,0.00027397,2]
[420921673,1776729053752,-500.0,0.00027397,2]
[420921674,1776729053763,-500.0,0.00027397,2]
[420921675,1776729053772,-1829.1,0.00027397,2]
[420921676,1776729053781,-500.0,0.00027397,2]
[420921677,1776729053791,-828.86,0.00027397,2]
[420921678,1776729053800,-151.0,0.00027397,2]
[420921679,1776729053810,-1221.13,0.00027397,2]
[420921680,1776729053820,-151.0,0.00027397,2]
[420921681,1776729053830,-151.0,0.00027397,2]
[420921682,1776729053839,-151.0,0.00027397,2]
[420921683,1776729053848,-204.55372561,0.00027397,2]
[420921684,1776729053861,-85.05660939,0.00027397,2]
[420921685,1776729053870,-253.83345547,0.00027397,2]
[420921686,1776729053889,-404.73654453,0.00027397,2]
[420921687,1776729053899,-594.26345547,0.00027397,2]
[420921779,1776730231654,-150.0,9.252e-05,2]
[420921780,1776730231665,-300.0,9.329e-05,2]
[420921781,1776730231674,-193.82857995,9.407e-05,2]
[420921782,1776730231760,-1804.70842005,9.407e-05,2]
[420921783,1776730231769,-184.674,9.407e-05,2]
[420921784,1776730231779,-193.30609114,9.407e-05,2]
[420921785,1776730231788,-6238.24050612,9.498e-05,2]
[420921786,1776730231800,-260.03248731,9.498e-05,2]
[420921787,1776730231812,-18645.2279876,9.498e-05,2]
[420921788,1776730231832,-437.436765,9.498e-05,2]
[420921789,1776730231871,-699.0,9.498e-05,2]
[420921790,1776730231883,-11868.54365397,9.498e-05,2]
[420921791,1776730231893,-2500.0,9.499e-05,2]
[420921792,1776730231902,-152.64,9.552e-05,2]
[420921793,1776730231912,-680.71634458,9.589e-05,2]
[420921794,1776730231922,-500.0,9.598e-05,2]
[420921795,1776730231932,-500.0,9.598e-05,2]
[420921796,1776730231942,-164.57830878,9.598e-05,2]
[420921797,1776730231952,-500.0,9.598e-05,2]
[420921798,1776730231961,-337.23329839,9.598e-05,2]
[420921799,1776730231971,-500.0,9.598e-05,2]
[420921800,1776730231980,-155.59115507,9.598e-05,2]
[420921801,1776730231990,-501.11505511,9.598e-05,2]
[420921802,1776730232001,-517.89216066,9.598e-05,2]
[420921804,1776730232011,-500.0,9.598e-05,2]
[420921806,1776730232022,-500.0,9.598e-05,2]
[420921808,1776730232033,-360.41413098,9.598e-05,2]
[420921810,1776730232044,-500.0,9.598e-05,2]
[420921812,1776730232055,-500.0,9.598e-05,2]
[420921813,1776730232065,-500.0,9.598e-05,2]
[420921814,1776730232075,-500.0,9.598e-05,2]
[420921816,1776730232085,-500.0,9.598e-05,2]
[420921818,1776730232095,-500.0,9.598e-05,2]
[420921820,1776730232107,-500.0,9.598e-05,2]
[420921822,1776730232117,-500.0,9.598e-05,2]
[420921825,1776730232127,-500.0,9.598e-05,2]
[420921827,1776730232137,-500.0,9.598e-05,2]
[420921829,1776730232147,-500.0,9.598e-05,2]
[420921831,1776730232157,-500.0,9.598e-05,2]
[420921833,1776730232166,-500.0,9.598e-05,2]
[420921834,1776730232176,-500.0,9.598e-05,2]
[420921835,1776730232185,-174.40099854,9.598e-05,2]
[420921836,1776730232195,-500.0,9.598e-05,2]
[420921837,1776730232204,-500.0,9.598e-05,2]
[420921838,1776730232214,-500.0,9.598e-05,2]
[420921839,1776730232223,-500.0,9.598e-05,2]
[420921840,1776730232232,-500.0,9.598e-05,2]
[420921841,1776730232242,-473.80475209,9.598e-05,2]
[420921842,1776730232251,-500.0,9.598e-05,2]
[420921843,1776730232261,-500.0,9.598e-05,2]
[420921844,1776730232271,-500.0,9.598e-05,2]
[420921845,1776730232280,-500.0,9.598e-05,2]
[420921846,1776730232290,-500.0,9.598e-05,2]
[420921847,1776730232299,-500.0,9.598e-05,2]
[420921848,1776730232310,-500.0,9.598e-05,2]
[420921849,1776730232320,-500.0,9.598e-05,2]
[420921850,1776730232330,-500.0,9.598e-05,2]
[420921851,1776730232339,-500.0,9.598e-05,2]
[420921852,1776730232348,-500.0,9.598e-05,2]
[420921853,1776730232358,-500.0,9.598e-05,2]
[420921854,1776730232368,-500.0,9.598e-05,2]
[420921855,1776730232377,-500.0,9.598e-05,2]
[420921856,1776730232387,-467.44009985,9.598e-05,2]
[420921857,1776730232397,-500.0,9.598e-05,2]
[420921858,1776730232407,-500.0,9.598e-05,2]
[420921859,1776730232416,-500.0,9.598e-05,2]
[420921860,1776730232426,-500.0,9.598e-05,2]
[420921861,1776730232436,-500.0,9.598e-05,2]
[420921862,1776730232446,-500.0,9.598e-05,2]
[420921863,1776730232456,-500.0,9.598e-05,2]
[420921864,1776730232466,-500.0,9.598e-05,2]
[420921865,1776730232477,-500.0,9.598e-05,2]
[420921866,1776730232487,-500.0,9.598e-05,2]
[420921867,1776730232497,-500.0,9.598e-05,2]
[420921868,1776730232507,-540.61822692,9.598e-05,2]
[420921869,1776730232517,-204.6003,9.599e-05,2]
[420921870,1776730232527,-500.0,9.6e-05,2]
[420921871,1776730232538,-500.54897623,9.7e-05,2]
[420921872,1776730232548,-402.03258897,0.0001,2]
[420921873,1776730232558,-911.02224885,0.0001,2]
[420921874,1776730232568,-887.85179881,0.0001,2]
[420921875,1776730232578,-805.43608072,0.0001,2]
[420921876,1776730232588,-151.87259596,0.0001,2]
[420921877,1776730232599,-2070.78902939,0.0001,2]
[420921878,1776730232610,-300.0,0.00010177,2]
[420921879,1776730232619,-300.0,0.00010177,2]
[420921880,1776730232629,-1600.96181799,0.00010177,2]
[420921881,1776730232638,-1178.72,0.000105,2]
[420921882,1776730232648,-97795.2926431,0.000107,2]
[420921883,1776730232661,-904.63772545,0.000107,2]
[420921890,1776730237745,-6250.91356552,0.000107,2]
[420921891,1776730237756,-997.91895596,0.000107,2]
[420921892,1776730237803,-1108.13607521,0.000107,2]
[420921893,1776730237914,-19512.08797171,0.000107,2]
[420921894,1776730237923,-153.83995688,0.00011099,2]
[420921895,1776730237933,-151.0,0.00011423,2]
[420921896,1776730237943,-151.0,0.00011452,2]
[420921897,1776730237953,-1300.0,0.000119,4]
[420921898,1776730237962,-54481.43601709,0.00012,2]
[420921899,1776730237974,-48993.48432967,0.00012,2]
[420921900,1776730237986,-1826.1386616,0.00012,2]
[420921901,1776730237999,-442.03370525,0.00012,2]
[420921917,1776730238430,-3864.78770353,0.00012,2]
[420922065,1776730239801,-342.108,0.00012,2]
[420922104,1776730240337,-405.26152993,0.00012,2]
[420922107,1776730240349,-699.42965099,0.00012,2]
[420922378,1776730242727,-1500.0,0.00012,2]
[420922380,1776730242739,-1048.0,0.00012,2]
[420922383,1776730242750,-603.0,0.00012,2]
[420922385,1776730242761,-979.16666667,0.00012,2]
[420922399,1776730242885,-10800.0,0.00012,2]
[420922406,1776730242944,-584.14067222,0.00012,2]
[420922408,1776730242953,-169.63651236,0.000134,2]
[420922410,1776730242962,-183.93236617,0.000135,2]
[420922415,1776730243000,-351.012724,0.000135,2]
[420922446,1776730245626,-465.05490983,0.000135,2]
[420922447,1776730245636,-500.0,0.00013698,2]
[420922448,1776730245645,-384.73189017,0.00013698,2]
[420922449,1776730245842,-115.26810983,0.00013698,2]
[420922450,1776730245851,-500.0,0.00013698,2]
[420922451,1776730245861,-500.0,0.00013698,2]
[420922452,1776730245871,-500.0,0.00013698,2]
[420922453,1776730245880,-500.0,0.00013698,2]
[420922454,1776730245890,-500.0,0.00013698,2]
[420922455,1776730245899,-235.50528217,0.00013698,2]
[420922456,1776730245911,-264.49471783,0.00013698,2]
[420922457,1776730245925,-500.0,0.00013698,2]
[420922458,1776730245934,-500.0,0.00013698,2]
[420922459,1776730245944,-500.0,0.00013698,2]
[420922460,1776730245954,-500.0,0.00013698,2]
[420922461,1776730245963,-500.0,0.00013698,2]
[420922462,1776730245972,-500.0,0.00013698,2]
[420922463,1776730245982,-500.0,0.00013698,2]
[420922464,1776730245992,-435.50528217,0.00013698,2]
[420922465,1776730246010,-64.49471783,0.00013698,2]
[420922466,1776730246020,-260.19828875,0.00013698,2]
[420922578,1776730819693,157.18151523,0.00013698,120]
[420922579,1776730821220,157.18151523,0.00013698,120]
[420922580,1776730822790,157.18151523,0.00013698,120]
[420922581,1776730824373,157.18151523,0.00013698,120]
[420922582,1776730826100,157.18151523,0.00013698,120]
[420922583,1776730827690,157.18151523,0.00013698,120]
[420922584,1776730830200,157.18151523,0.00013698,120]
[420922701,1776731439232,-1000.0,9.308e-05,2]
[420922702,1776731439258,-598.83,9.308e-05,2]
[420922703,1776731439267,-184.674,9.308e-05,2]
[420922704,1776731439276,-193.30609114,9.353e-05,2]
[420922705,1776731439286,-1200.0,9.396e-05,2]
[420922706,1776731439296,-300.0,9.397e-05,2]
[420922707,1776731439305,-300.0,9.397e-05,2]
[420922708,1776731439314,-199.2109,9.398e-05,2]
[420922709,1776731439323,-150.0,9.496e-05,2]
[420922710,1776731439333,-398.37635569,9.5e-05,2]
[420922711,1776731439342,-188.0,0.00010336,2]
[420922712,1776731439351,-1680.0,0.00010336,2]
[420922713,1776731439360,-317.0,0.00010336,2]
[420922714,1776731439370,-153.83995688,0.00011099,2]
[420922715,1776731439379,-720.0,0.00011369,2]
[420922716,1776731439388,-8036.18833907,0.00011424,2]
[420922717,1776731439400,-2275.98803234,0.00011424,2]
[420922718,1776731439411,-8188.68416012,0.00011424,2]
[420922719,1776731439423,-2041.44350403,0.00011424,2]
[420922720,1776731439434,-618.6790189,0.00011424,2]
[420922721,1776731439445,-496.19290314,0.00011424,2]
[420922722,1776731439460,-3319.77029272,0.00011424,2]
[420922723,1776731439472,-75749.36394568,0.00011424,2]
[420922724,1776731439484,-23305.8164721,0.00011424,2]
[420922725,1776731439493,-1983.3416737,0.00011424,2]
[420922726,1776731439502,-4155.5153496,0.00011424,2]
[420922727,1776731439512,-151.0,0.00011632,2]
[420922728,1776731439521,-151.0,0.00011656,2]
[420922729,1776731439531,-151.0,0.00011708,2]
[420922730,1776731439539,-151.0,0.00011709,2]
[420922731,1776731439549,-602.0,0.00011863,2]
[420922732,1776731439559,-1809.61,0.00012303,2]
[420922733,1776731439568,-1218.74,0.00012664,2]
[420922734,1776731439577,-200.0,0.00012664,2]
[420922735,1776731439589,-15114.46083427,0.00012861,2]
[420922736,1776731439601,-1826.1386616,0.00012861,2]
[420922737,1776731439612,-1358.12877004,0.00012861,2]
[420922738,1776731439624,-781.51955281,0.00012861,2]
[420922739,1776731439635,-501.52740981,0.00012861,2]
[420922740,1776731439655,-19183.682243,0.00012861,2]
[420922741,1776731439674,-406.80539071,0.00012861,2]
[420922742,1776731439685,-52043.93175669,0.00012861,2]
[420922743,1776731439700,-12840.85712798,0.00012861,2]
[420922745,1776731440214,-19975.07492119,0.00012861,2]
[420922746,1776731440224,-1300.0,0.000129,4]
[420922747,1776731440234,-250.0,0.00013,2]
[420922748,1776731440243,-500.0,0.0001305,2]
[420922749,1776731440252,-500.0,0.0001305,2]
[420922750,1776731440261,-500.0,0.0001305,2]
[420922751,1776731440271,-500.0,0.0001305,2]
[420922752,1776731440280,-500.0,0.0001305,2]
[420922753,1776731440289,-500.0,0.0001305,2]
[420922754,1776731440298,-160.91,0.00013087,2]
[420922755,1776731440307,-927.2208054,0.00013198,2]
[420922756,1776731440317,-206.8909268,0.00013593,2]
[420922757,1776731440326,-500.0,0.00013598,2]
[420922758,1776731440335,-1000.0,0.00013598,2]
[420922759,1776731440345,-500.0,0.00013598,2]
[420922760,1776731440354,-1000.0,0.000136,2]
[420922761,1776731440364,-1000.0,0.000136,3]
[420922762,1776731440378,-1000.0,0.000136,4]
[420922763,1776731440388,-1021.25,0.000136,5]
[420922764,1776731440397,-10322.1726523,0.00013692,2]
[420922765,1776731440407,-500.0,0.00013698,2]
[420922766,1776731440417,-500.0,0.00013698,2]
[420922767,1776731440426,-500.0,0.00013698,2]
[420922768,1776731440436,-500.0,0.00013698,2]
[420922769,1776731440446,-500.0,0.00013698,2]
[420922770,1776731440455,-500.0,0.00013698,2]
[420922771,1776731440465,-500.0,0.00013698,2]
[420922772,1776731440474,-500.0,0.00013698,2]
[420922773,1776731440484,-500.0,0.00013698,2]
[420922774,1776731440494,-500.0,0.00013698,2]
[420922775,1776731440503,-500.0,0.00013698,2]
[420922776,1776731440513,-500.0,0.00013698,2]
[420922777,1776731440523,-500.0,0.00013698,2]
[420922778,1776731440532,-500.0,0.00013698,2]
[420922779,1776731440542,-500.0,0.00013698,2]
[420922781,1776731440552,-502.77724734,0.00013698,2]
[420922782,1776731440561,-500.0,0.00013698,2]
[420922783,1776731440570,-500.0,0.00013698,2]
[420922784,1776731440580,-500.0,0.00013698,2]
[420922785,1776731440589,-500.0,0.00013698,2]
[420922786,1776731440599,-500.0,0.00013698,2]
[420922787,1776731440609,-500.0,0.00013698,2]
[420922788,1776731440618,-500.0,0.00013698,2]
[420922789,1776731440627,-500.0,0.00013698,2]
[420922790,1776731440638,-500.0,0.00013698,2]
[420922791,1776731440647,-500.0,0.00013698,2]
[420922792,1776731440657,-500.0,0.00013698,2]
[420922793,1776731440667,-500.0,0.00013698,2]
[420922795,1776731440676,-500.0,0.00013698,2]
[420922796,1776731440686,-592.96227157,0.00013698,2]
[420922797,1776731440695,-500.0,0.00013698,2]
[420922798,1776731440705,-500.0,0.00013698,2]
[420922799,1776731440715,-500.0,0.00013698,2]
[420922800,1776731440725,-151.79,0.00013699,2]
[420922801,1776731440735,-759.0,0.00013699,2]
[420922802,1776731440745,-166.66,0.00013699,2]
[420922803,1776731440755,-200.0,0.000137,2]
[420922804,1776731440765,-166.66,0.00013836,2]
[420922805,1776731440779,-166.66,0.00013973,2]
[420922806,1776731440789,-723.7197879,0.0001399,2]
[420922807,1776731440799,-166.66,0.0001411,2]
[420922808,1776731440810,-166.66,0.00014247,2]
[420922809,1776731440820,-178.10986404,0.00014295,2]
[420922810,1776731440830,-500.0,0.00014295,2]
[420922811,1776731440840,-500.0,0.00014295,2]
[420922812,1776731440850,-525.92876345,0.00014295,2]
[420922813,1776731440860,-500.0,0.00014295,2]
[420922814,1776731440870,-168.91421242,0.00014295,2]
[420922815,1776731440881,-500.0,0.00014295,2]
[420922816,1776731440890,-500.0,0.00014295,2]
[420922817,1776731440901,-500.0,0.00014295,2]
[420922818,1776731440911,-500.0,0.00014295,2]
[420922819,1776731440920,-500.0,0.00014295,2]
[420922820,1776731440931,-500.0,0.00014295,2]
[420922821,1776731440941,-401.19415417,0.00014295,2]
[420922822,1776731440951,-500.0,0.00014295,2]
[420922823,1776731440960,-232.69779997,0.00014295,2]
[420922824,1776731440971,-500.0,0.00014296,2]
[420922825,1776731440980,-500.0,0.00014296,2]
[420922826,1776731440990,-187.38928383,0.00014296,2]
[420922827,1776731441000,-500.0,0.00014296,2]
[420922828,1776731441010,-500.0,0.00014296,2]
[420922829,1776731441020,-500.0,0.00014296,2]
[420922830,1776731441030,-500.0,0.00014296,2]
[420922831,1776731441041,-500.0,0.00014296,2]
[420922832,1776731441051,-500.0,0.00014296,2]
[420922833,1776731441061,-124032.1266681,0.00014297,2]
[420922834,1776731441070,-166.66,0.00014384,2]
[420922835,1776731441080,-264.03150774,0.00014521,2]
[420922836,1776731441090,-160.0,0.00014593,2]
[420922837,1776731441099,-300.0,0.00015,2]
[420922838,1776731441109,-1443.39,0.000151,2]
[420922839,1776731441118,-518.4,0.0001523,2]
[420922840,1776731441128,-518.4,0.00015504,2]
[420922841,1776731441138,-151.0,0.00015733,2]
[420922842,1776731441148,-151.0,0.00015733,2]
[420922843,1776731441158,-151.0,0.00015733,2]
[420922844,1776731441172,-10286.82932659,0.00015734,2]
[420922845,1776731441185,-113745.29734151,0.00015734,2]
[420922846,1776731441195,-518.4,0.00015778,2]
[420922847,1776731441205,-2600.0,0.000159,5]
[420922848,1776731441215,-518.4,0.00016052,2]
[420922849,1776731441225,-254.55,0.00016116,2]
[420922850,1776731441235,-150.0,0.00016262,2]
[420922851,1776731441245,-255.34272277,0.00016262,2]
[420922852,1776731441255,-500.0,0.00016262,2]
[420922853,1776731441264,-500.0,0.00016262,2]
[420922854,1776731441274,-500.0,0.00016262,2]
[420922855,1776731441284,-500.0,0.00016262,2]
[420922856,1776731441294,-500.0,0.00016262,2]
[420922857,1776731441304,-500.0,0.00016262,2]
[420922858,1776731441314,-500.0,0.00016262,2]
[420922859,1776731441324,-500.0,0.00016262,2]
[420922860,1776731441334,-500.0,0.00016262,2]
[420922861,1776731441344,-500.0,0.00016262,2]
[420922862,1776731441354,-372.01730652,0.00016262,2]
[420922863,1776731441364,-500.0,0.00016262,2]
[420922864,1776731441374,-500.0,0.00016262,2]
[420922865,1776731441384,-500.0,0.00016262,2]
[420922866,1776731441394,-500.0,0.00016262,2]
[420922867,1776731441404,-500.0,0.00016262,2]
[420922868,1776731441414,-500.0,0.00016262,2]
[420922869,1776731441424,-500.0,0.00016262,2]
[420922870,1776731441433,-500.0,0.00016262,2]
[420922871,1776731441443,-500.0,0.00016262,2]
[420922872,1776731441453,-500.0,0.00016262,2]
[420922873,1776731441463,-500.0,0.00016262,2]
[420922874,1776731441474,-500.0,0.00016262,2]
[420922875,1776731441483,-500.0,0.00016262,2]
[420922876,1776731441493,-504.40778139,0.00016262,2]
[420922877,1776731441503,-207.82537846,0.00016262,2]
[420922878,1776731441513,-518.4,0.00016326,2]
[420922879,1776731441524,-500.0,0.00016536,2]
[420922880,1776731441535,-217.32642867,0.00016536,2]
[420922881,1776731441545,-500.0,0.00016536,2]
[420922882,1776731441555,-500.0,0.00016536,2]
[420922883,1776731441572,-150.0,0.00016536,2]
[420922884,1776731441583,-500.0,0.00016536,2]
[420922885,1776731441594,-159.9987667,0.00016536,2]
[420922886,1776731441604,-500.0,0.00016536,2]
[420922887,1776731441614,-413.1239262,0.00016536,2]
[420922888,1776731441624,-150.0,0.00016536,2]
[420922889,1776731441635,-150.0,0.00016536,2]
[420922890,1776731441644,-150.0,0.00016536,2]
[420922891,1776731441654,-150.0,0.00016536,2]
[420922892,1776731441664,-150.0,0.00016536,2]
[420922893,1776731441675,-150.0,0.00016536,2]
[420922894,1776731441684,-166.10582343,0.00016536,2]
[420922895,1776731441694,-150.0,0.00016536,2]
[420922896,1776731441704,-250.0,0.00016536,2]
[420922897,1776731441714,-500.0,0.00016536,2]
[420922898,1776731441724,-500.0,0.00016536,2]
[420922899,1776731441734,-500.0,0.00016536,2]
[420922900,1776731441744,-500.0,0.00016536,2]
[420922901,1776731441754,-500.0,0.00016536,2]
[420922902,1776731441763,-500.0,0.00016536,2]
[420922903,1776731441773,-450.0,0.00016536,2]
[420922904,1776731441783,-447.0,0.00016536,2]
[420922905,1776731441792,-150.0,0.00016536,2]
[420922906,1776731441802,-447.0,0.00016536,2]
[420922907,1776731441812,-150.0,0.00016536,2]
[420922908,1776731441822,-447.0,0.00016536,2]
[420922909,1776731441831,-150.0,0.00016536,2]
[420922910,1776731441841,-447.0,0.00016536,2]
[420922911,1776731441851,-150.0,0.00016536,2]
[420922912,1776731441861,-447.0,0.00016536,2]
[420922913,1776731441871,-150.0,0.00016536,2]
[420922914,1776731441880,-447.0,0.00016536,2]
[420922915,1776731441891,-182.4399254,0.00016536,2]
[420922916,1776731441900,-447.0,0.00016536,2]
[420922917,1776731441910,-447.0,0.00016536,2]
[420922918,1776731441919,-447.0,0.00016536,2]
[420922919,1776731441929,-447.0,0.00016536,2]
[420922920,1776731441939,-447.0,0.00016536,2]
[420922921,1776731441949,-447.0,0.00016536,2]
[420922922,1776731441958,-447.0,0.00016536,2]
[420922923,1776731441967,-447.0,0.00016536,2]
[420922924,1776731441977,-447.0,0.00016536,2]
[420922925,1776731441987,-447.0,0.00016536,2]
[420922926,1776731441996,-447.0,0.00016536,2]
[420922927,1776731442006,-447.0,0.00016536,2]
[420922928,1776731442024,-447.0,0.00016536,2]
[420922929,1776731442037,-447.0,0.00016536,2]
[420922930,1776731442047,-447.0,0.00016536,2]
[420922931,1776731442057,-447.0,0.00016536,2]
[420922932,1776731442067,-447.0,0.00016536,2]
[420922933,1776731442077,-469.0,0.00016536,2]
[420922934,1776731442087,-500.0,0.00016549,2]
[420922935,1776731442097,-500.0,0.00016549,2]
[420922936,1776731442107,-151.0,0.0001655,2]
[420922937,1776731442117,-151.0,0.0001655,2]
[420922938,1776731442127,-151.0,0.0001655,2]
[420922939,1776731442137,-215378.7352,0.0001655,2]
[420922940,1776731442147,-500.43587122,0.000166,2]
[420922941,1776731442157,-316.77936515,0.000166,2]
[420922942,1776731442167,-518.41,0.000166,2]
[420922943,1776731442176,-264.3689456,0.0001672,2]
[420922944,1776731442186,-264.03150771,0.00016888,2]
[420922945,1776731442196,-978.29769209,0.00016924,40]
[420922946,1776731442206,-350.0,0.00017,2]
[420922947,1776731442216,-1809.61,0.00017224,2]
[420922948,1776731442227,-264.3689456,0.00017486,2]
[420922949,1776731442236,-301.95,0.00017728,2]
[420922950,1776731442246,-264.3689456,0.00018252,7]
[420922951,1776731442256,-501.24,0.0001834,2]
[420922952,1776731442266,-501.28,0.00018614,2]
[420922953,1776731442276,-449.0,0.00018817,5]
[420922954,1776731442286,-359.0,0.00018817,5]
[420922955,1776731442296,-264.3689456,0.00019019,7]
[420922956,1776731442306,-264.03150771,0.00019254,2]
[420922957,1776731442315,-1252.0,0.000197,3]
[420922958,1776731442326,-264.3689456,0.00019785,7]
[420922959,1776731442336,-154.0,0.0002,2]
[420922960,1776731442346,-310.0,0.0002,2]
[420922961,1776731442356,-198.0,0.0002,2]
[420922962,1776731442366,-301.0,0.0002,2]
[420922963,1776731442376,-9798.27152707,0.00020145,2]
[420922964,1776731442523,-2048.23499573,0.00020145,2]
[420922965,1776731442535,-393.44876562,0.00020145,2]
[420922967,1776731442817,-16339.72992309,0.00020145,2]
[420922968,1776731445906,-3406.72558467,0.00020145,2]
[420922969,1776731445918,-7669.53772376,0.00020145,2]
[420922970,1776731445930,-39948.81090496,0.00020145,2]
[420922984,1776731446515,-6597.87246381,0.00020145,2]
[420922985,1776731446571,-6648.62823762,0.00020145,2]
[420922986,1776731446732,-335.04991627,0.00020145,2]
[420923036,1776732632178,-764.99473768,0.000107,2]
[420923037,1776732632233,-552.0,0.000107,2]
[420923038,1776732632339,-561.36,0.000107,2]
[420923039,1776732632352,-320.91732953,0.000107,2]
[420923040,1776732632361,-530.27489892,0.00010736,2]
[420923041,1776732632406,-4969.73510108,0.00010736,2]
[420923042,1776732632415,-251.0,0.0001079,2]
[420923043,1776732632425,-1200.0,0.000109,3]
[420923044,1776732632434,-788.0,0.00010976,2]
[420923045,1776732632443,-1101.0,0.00010977,2]
[420923046,1776732632453,-300.0,0.00010977,2]
[420923047,1776732632463,-195.0,0.00010978,2]
[420923048,1776732632472,-195.0,0.00010978,2]
[420923049,1776732632481,-195.0,0.00010978,2]
[420923050,1776732632490,-600.0,0.00010978,2]
[420923052,1776732632499,-851.40308271,0.00010998,2]
[420923053,1776732632509,-600.0,0.00011048,2]
[420923055,1776732632518,-300.0,0.00011097,2]
[420923057,1776732632528,-184.67563539,0.00011098,2]
[420923059,1776732632537,-1279.064,0.00011098,2]
[420923061,1776732632547,-2048.75739458,0.00011124,2]
[420923063,1776732632556,-152.95454708,0.00011124,2]
[420923065,1776732632566,-2500.0,0.00011124,2]
[420923067,1776732632575,-582.88609134,0.000112,2]
[420923069,1776732632585,-1405.28307314,0.000112,2]
[420923071,1776732632594,-1263.85245949,0.000112,2]
[420923073,1776732632603,-1452.82573558,0.000112,2]
[420923074,1776732632612,-155.55902801,0.000112,2]
[420923075,1776732632621,-167.80955847,0.000112,2]
[420923076,1776732632630,-164.80461387,0.000112,2]
[420923077,1776732632640,-166.79305162,0.000112,2]
[420923078,1776732632649,-368.15013441,0.00011223,2]
[420923079,1776732632658,-500.0,0.00011223,2]
[420923080,1776732632668,-500.0,0.00011223,2]
[420923081,1776732632677,-500.0,0.00011223,2]
[420923082,1776732632687,-500.0,0.00011223,2]
[420923083,1776732632697,-380.83590792,0.00011223,2]
[420923084,1776732632707,-562.88845998,0.00011223,2]
[420923085,1776732632716,-500.0,0.00011223,2]
[420923086,1776732632725,-500.0,0.00011223,2]
[420923087,1776732632734,-500.0,0.00011223,2]
[420923088,1776732632744,-500.0,0.00011223,2]
[420923089,1776732632754,-496.74400999,0.00011223,2]
[420923090,1776732632763,-500.0,0.00011223,2]
[420923091,1776732632773,-1000.0,0.00011224,2]
[420923092,1776732632782,-16423.6562,0.00011224,2]
[420923093,1776732632791,-379420.2177,0.00011224,2]
[420923094,1776732632801,-3670.3254,0.00011224,2]